[Event "Titled Tuesday Blitz May 4 2021"]
[White "Landaw, Julian"]
[Black "Suvorov, Alexander"]
[WhiteFideId "2023342"]
[BlackFideId "12977063"]
[WhiteElo "2312"]
[BlackElo "2221"]
[Result "0-1"]
[Round "07"]
[TimeControl "180+1"]
[Date "2021.05.04"]
[WhiteClock "0:00:59"]
[BlackClock "0:01:46"]

1. e4 {[%clk 0:03:00]}  c5 {[%clk 0:02:58]} 2. Nc3 {[%clk 0:03:00]}  e6 {[%clk 0:02:58]} 3. g3 {[%clk 0:03:00]}  d5 {[%clk 0:02:58]} 4. exd5 {[%clk 0:03:01]}  exd5 {[%clk 0:02:59]} 5. Bg2 {[%clk 0:03:01]}  d4 {[%clk 0:02:59]} 6. Nd5 {[%clk 0:03:01]}  Nc6 {[%clk 0:02:45]} 7. d3 {[%clk 0:02:56]}  Be6 {[%clk 0:02:40]} 8. Qe2 {[%clk 0:02:53]}  Qd7 {[%clk 0:02:34]} 9. Nf4 {[%clk 0:02:48]}  O-O-O {[%clk 0:02:30]} 10. Nxe6 {[%clk 0:02:48]}  fxe6 {[%clk 0:02:31]} 11. Nf3 {[%clk 0:02:33]}  h6 {[%clk 0:02:23]} 12. O-O {[%clk 0:02:17]}  Bd6 {[%clk 0:02:23]} 13. Bh3 {[%clk 0:02:14]}  Re8 {[%clk 0:02:23]} 14. Re1 {[%clk 0:02:13]}  Nd8 {[%clk 0:02:24]} 15. Ne5 {[%clk 0:02:06]}  Bxe5 {[%clk 0:02:12]} 16. Qxe5 {[%clk 0:02:05]}  Qc7 {[%clk 0:02:13]} 17. b4 {[%clk 0:01:30]}  Qxe5 {[%clk 0:02:07]} 18. Rxe5 {[%clk 0:01:31]}  cxb4 {[%clk 0:02:07]} 19. Bb2 {[%clk 0:01:27]}  Nc6 {[%clk 0:01:51]} 20. Rxe6 {[%clk 0:01:22]}  Rxe6 {[%clk 0:01:50]} 21. Bxe6+ {[%clk 0:01:23]}  Kc7 {[%clk 0:01:47]} 22. Bd5 {[%clk 0:01:04]}  Nge7 {[%clk 0:01:47]} 23. Re1 {[%clk 0:00:59]}  Nxd5 {[%clk 0:01:46]} 0-1


[Site "https://www.chess.com"]

[Event "Titled Tuesday Blitz May 4 2021"]
[White "Langner, Ladislav"]
[Black "Mchedlishvili, Mikheil"]
[WhiteFideId "300403"]
[BlackFideId "13600966"]
[WhiteElo "2346"]
[BlackElo "2618"]
[Result "0-1"]
[Round "07"]
[TimeControl "180+1"]
[Date "2021.05.04"]
[WhiteClock "0:00:03"]
[BlackClock "0:00:13"]

1. e4 {[%clk 0:03:00]}  c6 {[%clk 0:02:59]} 2. d4 {[%clk 0:03:01]}  d5 {[%clk 0:02:59]} 3. e5 {[%clk 0:03:01]}  Bf5 {[%clk 0:02:58]} 4. Nd2 {[%clk 0:03:02]}  e6 {[%clk 0:02:58]} 5. Nb3 {[%clk 0:03:02]}  Nd7 {[%clk 0:02:57]} 6. Nf3 {[%clk 0:03:02]}  h6 {[%clk 0:02:56]} 7. Be3 {[%clk 0:03:02]}  Ne7 {[%clk 0:02:55]} 8. Be2 {[%clk 0:03:02]}  Bh7 {[%clk 0:02:55]} 9. O-O {[%clk 0:03:02]}  Nf5 {[%clk 0:02:55]} 10. Rc1 {[%clk 0:03:02]}  Be7 {[%clk 0:02:53]} 11. c4 {[%clk 0:03:02]}  dxc4 {[%clk 0:02:53]} 12. Bxc4 {[%clk 0:03:01]}  O-O {[%clk 0:02:53]} 13. Bd3 {[%clk 0:02:57]}  Nb6 {[%clk 0:02:47]} 14. Bxf5 {[%clk 0:02:47]}  Bxf5 {[%clk 0:02:46]} 15. Nfd2 {[%clk 0:02:43]}  Nd5 {[%clk 0:02:40]} 16. Qf3 {[%clk 0:02:37]}  Qd7 {[%clk 0:02:08]} 17. Ne4 {[%clk 0:02:33]}  Rfd8 {[%clk 0:02:07]} 18. Rfd1 {[%clk 0:02:29]}  Rac8 {[%clk 0:02:05]} 19. h3 {[%clk 0:02:27]}  b6 {[%clk 0:02:00]} 20. Rd2 {[%clk 0:02:15]}  Nb4 {[%clk 0:01:57]} 21. a3 {[%clk 0:02:11]}  Qd5 {[%clk 0:01:56]} 22. axb4 {[%clk 0:01:42]}  Bxe4 {[%clk 0:01:52]} 23. Qg4 {[%clk 0:01:23]}  h5 {[%clk 0:01:44]} 24. Qf4 {[%clk 0:01:18]}  g5 {[%clk 0:01:33]} 25. Qg3 {[%clk 0:01:05]}  Qxb3 {[%clk 0:01:32]} 26. Rc3 {[%clk 0:01:01]}  Qxb4 {[%clk 0:01:31]} 27. Bxg5 {[%clk 0:01:00]}  Bxg5 {[%clk 0:01:31]} 28. Qxg5+ {[%clk 0:00:59]}  Bg6 {[%clk 0:01:31]} 29. Rf3 {[%clk 0:00:51]}  Qf8 {[%clk 0:01:10]} 30. Rf6 {[%clk 0:00:29]}  Qg7 {[%clk 0:01:09]} 31. f4 {[%clk 0:00:29]}  c5 {[%clk 0:01:02]} 32. f5 {[%clk 0:00:27]}  Bxf5 {[%clk 0:00:54]} 33. Qxh5 {[%clk 0:00:27]}  Rxd4 {[%clk 0:00:47]} 34. Rf2 {[%clk 0:00:21]}  Bg6 {[%clk 0:00:45]} 35. Qg5 {[%clk 0:00:15]}  Rcd8 {[%clk 0:00:41]} 36. Kh2 {[%clk 0:00:15]}  R4d5 {[%clk 0:00:38]} 37. h4 {[%clk 0:00:13]}  Bf5 {[%clk 0:00:32]} 38. Qf4 {[%clk 0:00:11]}  Rd4 {[%clk 0:00:30]} 39. Qe3 {[%clk 0:00:04]}  Rxh4+ {[%clk 0:00:29]} 40. Kg1 {[%clk 0:00:04]}  Rd1+ {[%clk 0:00:29]} 41. Rf1 {[%clk 0:00:05]}  Rh1+ {[%clk 0:00:25]} 42. Kxh1 {[%clk 0:00:04]}  Rxf1+ {[%clk 0:00:25]} 43. Kh2 {[%clk 0:00:04]}  Qg4 {[%clk 0:00:19]} 44. Qh6 {[%clk 0:00:03]}  Rf2 {[%clk 0:00:15]} 45. Rxf7 {[%clk 0:00:03]}  Qxg2# {[%clk 0:00:13]} 0-1


[Site "https://www.chess.com"]

[Event "Titled Tuesday Blitz May 4 2021"]
[White "Lauridsen, Jesper Morch"]
[Black "Sokolovsky, Yahli"]
[WhiteFideId "1401890"]
[BlackFideId "2820242"]
[WhiteElo "2294"]
[BlackElo "1770"]
[Result "1-0"]
[Round "07"]
[TimeControl "180+1"]
[Date "2021.05.04"]
[WhiteClock "0:00:04"]
[BlackClock "0:00:01"]

1. e4 {[%clk 0:03:00]}  g6 {[%clk 0:02:58]} 2. d4 {[%clk 0:03:00]}  Bg7 {[%clk 0:02:58]} 3. Nc3 {[%clk 0:03:00]}  d6 {[%clk 0:02:59]} 4. f4 {[%clk 0:03:00]}  Nf6 {[%clk 0:02:56]} 5. Nf3 {[%clk 0:03:00]}  Nc6 {[%clk 0:02:57]} 6. e5 {[%clk 0:02:57]}  dxe5 {[%clk 0:02:56]} 7. fxe5 {[%clk 0:02:56]}  Nh5 {[%clk 0:02:38]} 8. Bb5 {[%clk 0:02:47]}  O-O {[%clk 0:02:32]} 9. Bxc6 {[%clk 0:02:40]}  bxc6 {[%clk 0:02:30]} 10. O-O {[%clk 0:02:41]}  f5 {[%clk 0:02:13]} 11. Bg5 {[%clk 0:02:34]}  Be6 {[%clk 0:01:56]} 12. Qd2 {[%clk 0:02:23]}  Bd5 {[%clk 0:01:43]} 13. Nxd5 {[%clk 0:02:14]}  cxd5 {[%clk 0:01:38]} 14. Bh6 {[%clk 0:02:14]}  Qd7 {[%clk 0:01:17]} 15. Bxg7 {[%clk 0:02:10]}  Nxg7 {[%clk 0:01:16]} 16. Qh6 {[%clk 0:02:07]}  Ne6 {[%clk 0:01:11]} 17. Ng5 {[%clk 0:01:50]}  Nxg5 {[%clk 0:01:10]} 18. Qxg5 {[%clk 0:01:50]}  e6 {[%clk 0:01:04]} 19. h4 {[%clk 0:01:50]}  Qd8 {[%clk 0:00:47]} 20. Qxd8 {[%clk 0:01:43]}  Rfxd8 {[%clk 0:00:43]} 21. b4 {[%clk 0:01:42]}  a5 {[%clk 0:00:37]} 22. a3 {[%clk 0:01:39]}  Kf7 {[%clk 0:00:33]} 23. Rab1 {[%clk 0:01:33]}  Ke7 {[%clk 0:00:31]} 24. Rf3 {[%clk 0:01:32]}  axb4 {[%clk 0:00:22]} 25. axb4 {[%clk 0:01:23]}  Rdb8 {[%clk 0:00:19]} 26. Rc3 {[%clk 0:01:23]}  Kd7 {[%clk 0:00:19]} 27. b5 {[%clk 0:01:18]}  Ra5 {[%clk 0:00:14]} 28. Rc5 {[%clk 0:01:19]}  Rb6 {[%clk 0:00:14]} 29. Rb3 {[%clk 0:01:16]}  Kc8 {[%clk 0:00:04]} 30. Kf2 {[%clk 0:01:11]}  Kb8 {[%clk 0:00:04]} 31. Ke3 {[%clk 0:01:09]}  Ra1 {[%clk 0:00:02]} 32. Kf4 {[%clk 0:00:54]}  h6 {[%clk 0:00:02]} 33. Rg3 {[%clk 0:00:50]}  Rf1+ {[%clk 0:00:02]} 34. Ke3 {[%clk 0:00:48]}  f4+ {[%clk 0:00:01]} 35. Ke2 {[%clk 0:00:47]}  fxg3 {[%clk 0:00:02]} 36. Kxf1 {[%clk 0:00:47]}  Kc8 {[%clk 0:00:02]} 37. Ke2 {[%clk 0:00:45]}  Kd7 {[%clk 0:00:01]} 38. Kf3 {[%clk 0:00:45]}  Rb8 {[%clk 0:00:02]} 39. Kxg3 {[%clk 0:00:43]}  Ra8 {[%clk 0:00:03]} 40. Rc3 {[%clk 0:00:41]}  Ra4 {[%clk 0:00:03]} 41. Rd3 {[%clk 0:00:28]}  Rb4 {[%clk 0:00:03]} 42. Kf4 {[%clk 0:00:24]}  Rxb5 {[%clk 0:00:02]} 43. Rg3 {[%clk 0:00:24]}  Rb4 {[%clk 0:00:01]} 44. c3 {[%clk 0:00:24]}  Rc4 {[%clk 0:00:02]} 45. Rxg6 {[%clk 0:00:22]}  Rxc3 {[%clk 0:00:02]} 46. Rxh6 {[%clk 0:00:23]}  Rd3 {[%clk 0:00:02]} 47. Rh7+ {[%clk 0:00:20]}  Kc8 {[%clk 0:00:02]} 48. Kg5 {[%clk 0:00:19]}  Rxd4 {[%clk 0:00:02]} 49. Kf6 {[%clk 0:00:19]}  c5 {[%clk 0:00:02]} 50. Kxe6 {[%clk 0:00:19]}  c4 {[%clk 0:00:03]} 51. Kd6 {[%clk 0:00:18]}  c3 {[%clk 0:00:03]} 52. Rc7+ {[%clk 0:00:17]}  Kd8 {[%clk 0:00:04]} 53. e6 {[%clk 0:00:16]}  Rc4 {[%clk 0:00:02]} 54. Ra7 {[%clk 0:00:08]}  Rc6+ {[%clk 0:00:02]} 55. Kxc6 {[%clk 0:00:08]}  c2 {[%clk 0:00:02]} 56. Kd6 {[%clk 0:00:05]}  c1=Q {[%clk 0:00:01]} 57. Ra8+ {[%clk 0:00:04]} 1-0


[Site "https://www.chess.com"]

[Event "Titled Tuesday Blitz May 4 2021"]
[White "Lomaia, Diana"]
[Black "Gurevich, Dmitry"]
[WhiteFideId "13612476"]
[BlackFideId "2000407"]
[WhiteElo "1742"]
[BlackElo "2506"]
[Result "1-0"]
[Round "07"]
[TimeControl "180+1"]
[Date "2021.05.04"]
[WhiteClock "0:00:10"]
[BlackClock "0:00:01"]

1. d4 {[%clk 0:03:00]}  Nf6 {[%clk 0:02:59]} 2. c4 {[%clk 0:03:01]}  a6 {[%clk 0:03:00]} 3. Nf3 {[%clk 0:03:00]}  c5 {[%clk 0:03:00]} 4. d5 {[%clk 0:03:00]}  b5 {[%clk 0:03:00]} 5. cxb5 {[%clk 0:02:52]}  axb5 {[%clk 0:02:59]} 6. e4 {[%clk 0:02:52]}  Nxe4 {[%clk 0:02:57]} 7. Qc2 {[%clk 0:02:43]}  Qa5+ {[%clk 0:02:53]} 8. Nbd2 {[%clk 0:02:39]}  Nxd2 {[%clk 0:02:30]} 9. Bxd2 {[%clk 0:02:38]}  Qb6 {[%clk 0:02:29]} 10. Bd3 {[%clk 0:02:07]}  d6 {[%clk 0:02:28]} 11. O-O {[%clk 0:02:08]}  Nd7 {[%clk 0:02:26]} 12. Rfe1 {[%clk 0:02:00]}  Nf6 {[%clk 0:02:25]} 13. Qb3 {[%clk 0:01:50]}  Bd7 {[%clk 0:02:17]} 14. a4 {[%clk 0:01:49]}  b4 {[%clk 0:02:12]} 15. Bb5 {[%clk 0:01:33]}  g6 {[%clk 0:01:59]} 16. Bg5 {[%clk 0:01:31]}  Bg7 {[%clk 0:01:53]} 17. Bxd7+ {[%clk 0:01:23]}  Kxd7 {[%clk 0:01:53]} 18. Re3 {[%clk 0:01:09]}  Rhe8 {[%clk 0:01:46]} 19. Nd2 {[%clk 0:01:06]}  Qb7 {[%clk 0:01:27]} 20. Bxf6 {[%clk 0:00:56]}  Bxf6 {[%clk 0:01:26]} 21. Nc4 {[%clk 0:00:55]}  Kc7 {[%clk 0:01:20]} 22. Qd3 {[%clk 0:00:46]}  b3 {[%clk 0:01:12]} 23. Ra3 {[%clk 0:00:43]}  Qb4 {[%clk 0:01:03]} 24. a5 {[%clk 0:00:29]}  Reb8 {[%clk 0:00:56]} 25. h3 {[%clk 0:00:25]}  Qb5 {[%clk 0:00:49]} 26. Rxb3 {[%clk 0:00:16]}  Qxb3 {[%clk 0:00:47]} 27. Qxb3 {[%clk 0:00:17]}  Rxb3 {[%clk 0:00:47]} 28. Rxb3 {[%clk 0:00:18]}  e6 {[%clk 0:00:32]} 29. dxe6 {[%clk 0:00:17]}  fxe6 {[%clk 0:00:31]} 30. Rb6 {[%clk 0:00:17]}  Be7 {[%clk 0:00:16]} 31. Rb5 {[%clk 0:00:13]}  Kc6 {[%clk 0:00:13]} 32. Rb6+ {[%clk 0:00:12]}  Kd5 {[%clk 0:00:12]} 33. Ne3+ {[%clk 0:00:12]}  Kd4 {[%clk 0:00:11]} 34. Rb7 {[%clk 0:00:12]}  Bf6 {[%clk 0:00:07]} 35. Nc2+ {[%clk 0:00:12]}  Kd5 {[%clk 0:00:06]} 36. Ne3+ {[%clk 0:00:10]}  Kc6 {[%clk 0:00:06]} 37. Rb6+ {[%clk 0:00:10]}  Kc7 {[%clk 0:00:06]} 38. Nc4 {[%clk 0:00:11]}  d5 {[%clk 0:00:04]} 39. Nd6 {[%clk 0:00:11]}  Be5 {[%clk 0:00:02]} 40. Nb5+ {[%clk 0:00:11]}  Kd7 {[%clk 0:00:03]} 41. Rb7+ {[%clk 0:00:11]}  Kc6 {[%clk 0:00:02]} 42. Rb6+ {[%clk 0:00:11]}  Kd7 {[%clk 0:00:02]} 43. a6 {[%clk 0:00:11]}  Ke7 {[%clk 0:00:02]} 44. Rb7+ {[%clk 0:00:12]}  Kf6 {[%clk 0:00:02]} 45. a7 {[%clk 0:00:12]}  c4 {[%clk 0:00:02]} 46. Na3 {[%clk 0:00:09]}  Bd4 {[%clk 0:00:01]} 47. Nb5 {[%clk 0:00:08]}  Bc5 {[%clk 0:00:01]} 48. Kf1 {[%clk 0:00:09]}  d4 {[%clk 0:00:01]} 49. Ke2 {[%clk 0:00:09]}  c3 {[%clk 0:00:01]} 50. bxc3 {[%clk 0:00:09]}  dxc3 {[%clk 0:00:02]} 51. Kd3 {[%clk 0:00:09]}  Bxf2 {[%clk 0:00:02]} 52. Kxc3 {[%clk 0:00:09]}  e5 {[%clk 0:00:02]} 53. Kd3 {[%clk 0:00:10]}  Kf5 {[%clk 0:00:02]} 54. Ke2 {[%clk 0:00:09]}  Bg1 {[%clk 0:00:01]} 55. Rf7+ {[%clk 0:00:10]}  Ke6 {[%clk 0:00:02]} 56. Rg7 {[%clk 0:00:10]}  Kd5 {[%clk 0:00:02]} 57. Rxh7 {[%clk 0:00:10]}  e4 {[%clk 0:00:01]} 58. Nc7+ {[%clk 0:00:10]} 1-0


[Site "https://www.chess.com"]

[Event "Titled Tuesday Blitz May 4 2021"]
[White "Maiorov, Nikita"]
[Black "Zemach, Roee"]
[WhiteFideId "13501720"]
[BlackFideId "2818531"]
[WhiteElo "2440"]
[BlackElo "2131"]
[Result "1-0"]
[Round "07"]
[TimeControl "180+1"]
[Date "2021.05.04"]
[WhiteClock "0:00:23"]
[BlackClock "0:00:01"]

1. d4 {[%clk 0:02:59]}  Nf6 {[%clk 0:02:59]} 2. c4 {[%clk 0:02:57]}  e6 {[%clk 0:03:00]} 3. Nf3 {[%clk 0:02:56]}  d5 {[%clk 0:02:59]} 4. Nc3 {[%clk 0:02:56]}  dxc4 {[%clk 0:02:57]} 5. e4 {[%clk 0:02:54]}  Bb4 {[%clk 0:02:56]} 6. Bg5 {[%clk 0:02:54]}  c5 {[%clk 0:02:54]} 7. Bxc4 {[%clk 0:02:52]}  cxd4 {[%clk 0:02:53]} 8. Nxd4 {[%clk 0:02:50]}  Bxc3+ {[%clk 0:02:51]} 9. bxc3 {[%clk 0:02:50]}  Qa5 {[%clk 0:02:51]} 10. Bb5+ {[%clk 0:02:48]}  Bd7 {[%clk 0:02:47]} 11. Bxf6 {[%clk 0:02:45]}  gxf6 {[%clk 0:02:46]} 12. Bxd7+ {[%clk 0:02:45]}  Nxd7 {[%clk 0:02:46]} 13. O-O {[%clk 0:02:45]}  Qxc3 {[%clk 0:02:42]} 14. Qa4 {[%clk 0:02:38]}  O-O {[%clk 0:02:24]} 15. Nxe6 {[%clk 0:02:38]}  fxe6 {[%clk 0:02:20]} 16. Qxd7 {[%clk 0:02:36]}  Qc6 {[%clk 0:02:20]} 17. Qd3 {[%clk 0:02:30]}  Rad8 {[%clk 0:02:14]} 18. Qf3 {[%clk 0:02:28]}  Kh8 {[%clk 0:02:04]} 19. Rfd1 {[%clk 0:02:23]}  f5 {[%clk 0:02:00]} 20. Rxd8 {[%clk 0:02:10]}  Rxd8 {[%clk 0:01:59]} 21. Re1 {[%clk 0:02:09]}  Rd4 {[%clk 0:01:45]} 22. Qa3 {[%clk 0:02:03]}  Qd6 {[%clk 0:01:39]} 23. Qb2 {[%clk 0:01:59]}  Kg8 {[%clk 0:01:33]} 24. exf5 {[%clk 0:01:51]}  Rd1 {[%clk 0:01:30]} 25. Qe2 {[%clk 0:01:42]}  Rxe1+ {[%clk 0:01:30]} 26. Qxe1 {[%clk 0:01:42]}  exf5 {[%clk 0:01:31]} 27. h3 {[%clk 0:01:42]}  Kf7 {[%clk 0:01:30]} 28. Qa5 {[%clk 0:01:40]}  f4 {[%clk 0:00:59]} 29. Qf5+ {[%clk 0:01:38]}  Kg7 {[%clk 0:00:58]} 30. Qg5+ {[%clk 0:01:37]}  Kh8 {[%clk 0:00:52]} 31. h4 {[%clk 0:01:34]}  a6 {[%clk 0:00:43]} 32. h5 {[%clk 0:01:33]}  h6 {[%clk 0:00:43]} 33. Qf5 {[%clk 0:01:30]}  b5 {[%clk 0:00:42]} 34. Kh2 {[%clk 0:01:27]}  Kg7 {[%clk 0:00:40]} 35. Kh3 {[%clk 0:01:25]}  Qf6 {[%clk 0:00:40]} 36. Qd7+ {[%clk 0:01:24]}  Qf7 {[%clk 0:00:41]} 37. Qd4+ {[%clk 0:01:23]}  Qf6 {[%clk 0:00:41]} 38. Qa7+ {[%clk 0:01:23]}  Kg8 {[%clk 0:00:39]} 39. Qd7 {[%clk 0:01:13]}  Kh8 {[%clk 0:00:32]} 40. Qe8+ {[%clk 0:01:12]}  Kg7 {[%clk 0:00:33]} 41. Kg4 {[%clk 0:01:09]}  Qg5+ {[%clk 0:00:21]} 42. Kf3 {[%clk 0:01:09]}  Qd5+ {[%clk 0:00:20]} 43. Kxf4 {[%clk 0:01:09]}  Qxa2 {[%clk 0:00:17]} 44. Qg6+ {[%clk 0:01:06]}  Kh8 {[%clk 0:00:15]} 45. Qxh6+ {[%clk 0:01:06]}  Kg8 {[%clk 0:00:16]} 46. Qg6+ {[%clk 0:01:06]}  Kh8 {[%clk 0:00:16]} 47. Qf6+ {[%clk 0:01:02]}  Kh7 {[%clk 0:00:16]} 48. Qg6+ {[%clk 0:01:00]}  Kh8 {[%clk 0:00:16]} 49. h6 {[%clk 0:01:00]}  Qd2+ {[%clk 0:00:15]} 50. Kg3 {[%clk 0:00:58]}  Qc3+ {[%clk 0:00:13]} 51. Kh2 {[%clk 0:00:56]}  Qe5+ {[%clk 0:00:13]} 52. g3 {[%clk 0:00:56]}  a5 {[%clk 0:00:10]} 53. h7 {[%clk 0:00:53]}  Qg7 {[%clk 0:00:10]} 54. Qe8+ {[%clk 0:00:52]}  Kxh7 {[%clk 0:00:10]} 55. Qxb5 {[%clk 0:00:52]}  Qf6 {[%clk 0:00:04]} 56. Kg2 {[%clk 0:00:50]}  Qc3 {[%clk 0:00:02]} 57. Qf5+ {[%clk 0:00:46]}  Kg7 {[%clk 0:00:02]} 58. Qg5+ {[%clk 0:00:46]}  Kf7 {[%clk 0:00:02]} 59. g4 {[%clk 0:00:43]}  Qb4 {[%clk 0:00:01]} 60. Qf5+ {[%clk 0:00:42]}  Kg8 {[%clk 0:00:01]} 61. Qe6+ {[%clk 0:00:42]}  Kf8 {[%clk 0:00:01]} 62. g5 {[%clk 0:00:40]}  a4 {[%clk 0:00:01]} 63. g6 {[%clk 0:00:39]}  Qb7+ {[%clk 0:00:01]} 64. f3 {[%clk 0:00:39]}  Kg7 {[%clk 0:00:02]} 65. Kh3 {[%clk 0:00:32]}  Qb2 {[%clk 0:00:03]} 66. Qf7+ {[%clk 0:00:31]}  Kh6 {[%clk 0:00:03]} 67. Qh7+ {[%clk 0:00:28]}  Kg5 {[%clk 0:00:04]} 68. g7 {[%clk 0:00:25]}  Kf4 {[%clk 0:00:01]} 69. Qe4+ {[%clk 0:00:24]}  Kg5 {[%clk 0:00:01]} 70. g8=Q+ {[%clk 0:00:23]} 1-0


[Site "https://www.chess.com"]

[Event "Titled Tuesday Blitz May 4 2021"]
[White "Markidis, Konstantinos"]
[Black "Mekhitarian, Krikor Sevag"]
[WhiteFideId "4203500"]
[BlackFideId "2107660"]
[WhiteElo "2304"]
[BlackElo "2598"]
[Result "0-1"]
[Round "07"]
[TimeControl "180+1"]
[Date "2021.05.04"]
[WhiteClock "0:00:06"]
[BlackClock "0:00:54"]

1. e4 {[%clk 0:03:00]}  c5 {[%clk 0:02:59]} 2. Nf3 {[%clk 0:03:00]}  d6 {[%clk 0:02:57]} 3. Bb5+ {[%clk 0:03:00]}  Nd7 {[%clk 0:02:57]} 4. c3 {[%clk 0:03:00]}  a6 {[%clk 0:02:57]} 5. Ba4 {[%clk 0:03:00]}  Nf6 {[%clk 0:02:57]} 6. Bc2 {[%clk 0:02:59]}  g6 {[%clk 0:02:57]} 7. d4 {[%clk 0:02:59]}  Bg7 {[%clk 0:02:57]} 8. O-O {[%clk 0:02:59]}  O-O {[%clk 0:02:57]} 9. Re1 {[%clk 0:02:59]}  b5 {[%clk 0:02:55]} 10. Nbd2 {[%clk 0:02:38]}  Bb7 {[%clk 0:02:52]} 11. Nf1 {[%clk 0:02:36]}  cxd4 {[%clk 0:02:51]} 12. cxd4 {[%clk 0:02:36]}  Rc8 {[%clk 0:02:52]} 13. Bd2 {[%clk 0:02:33]}  Qb6 {[%clk 0:02:44]} 14. Ng3 {[%clk 0:02:11]}  b4 {[%clk 0:02:24]} 15. h3 {[%clk 0:02:03]}  a5 {[%clk 0:02:24]} 16. Bd3 {[%clk 0:02:02]}  e5 {[%clk 0:02:22]} 17. d5 {[%clk 0:02:02]}  Nc5 {[%clk 0:02:22]} 18. Bf1 {[%clk 0:02:02]}  Ba6 {[%clk 0:02:20]} 19. Be3 {[%clk 0:01:52]}  Bxf1 {[%clk 0:02:17]} 20. Rxf1 {[%clk 0:01:52]}  Qb5 {[%clk 0:02:16]} 21. Nd2 {[%clk 0:01:31]}  h5 {[%clk 0:02:06]} 22. Bxc5 {[%clk 0:00:43]}  Rxc5 {[%clk 0:02:03]} 23. b3 {[%clk 0:00:43]}  h4 {[%clk 0:02:01]} 24. Ne2 {[%clk 0:00:43]}  Bh6 {[%clk 0:02:01]} 25. f3 {[%clk 0:00:31]}  Rfc8 {[%clk 0:01:34]} 26. Nc4 {[%clk 0:00:30]}  Rxc4 {[%clk 0:01:35]} 27. bxc4 {[%clk 0:00:30]}  Qxc4 {[%clk 0:01:35]} 28. Qe1 {[%clk 0:00:14]}  Nh5 {[%clk 0:01:33]} 29. Kh2 {[%clk 0:00:13]}  Qd3 {[%clk 0:01:23]} 30. Rd1 {[%clk 0:00:13]}  Qe3 {[%clk 0:01:22]} 31. Qf2 {[%clk 0:00:09]}  Rc2 {[%clk 0:01:21]} 32. Qxe3 {[%clk 0:00:09]}  Bxe3 {[%clk 0:01:22]} 33. Nc1 {[%clk 0:00:08]}  Nf4 {[%clk 0:01:03]} 34. Rg1 {[%clk 0:00:06]}  a4 {[%clk 0:00:59]} 35. Nd3 {[%clk 0:00:05]}  Bxg1+ {[%clk 0:00:55]} 36. Kxg1 {[%clk 0:00:05]}  Nxd3 {[%clk 0:00:53]} 37. Rxd3 {[%clk 0:00:06]}  Rxa2 {[%clk 0:00:54]} 0-1


[Site "https://www.chess.com"]

[Event "Titled Tuesday Blitz May 4 2021"]
[White "Matveeva, Olga"]
[Black "Ambrogi, Agustin"]
[WhiteFideId "24107018"]
[BlackFideId "170933"]
[WhiteElo "2108"]
[BlackElo "2214"]
[Result "1-0"]
[Round "07"]
[TimeControl "180+1"]
[Date "2021.05.04"]
[WhiteClock "0:00:34"]
[BlackClock "0:00:14"]

1. d4 {[%clk 0:03:00]}  e6 {[%clk 0:02:46]} 2. c4 {[%clk 0:02:58]}  f5 {[%clk 0:02:31]} 3. Nf3 {[%clk 0:02:56]}  Nf6 {[%clk 0:02:30]} 4. g3 {[%clk 0:02:56]}  Be7 {[%clk 0:02:28]} 5. Bg2 {[%clk 0:02:56]}  O-O {[%clk 0:02:28]} 6. O-O {[%clk 0:02:56]}  d6 {[%clk 0:02:28]} 7. b3 {[%clk 0:02:54]}  Ne4 {[%clk 0:02:27]} 8. Bb2 {[%clk 0:02:51]}  Bf6 {[%clk 0:02:27]} 9. Nbd2 {[%clk 0:02:49]}  Nc6 {[%clk 0:02:27]} 10. Qc2 {[%clk 0:02:47]}  Nxd2 {[%clk 0:02:24]} 11. Qxd2 {[%clk 0:02:46]}  Qe7 {[%clk 0:02:24]} 12. Rfe1 {[%clk 0:02:42]}  e5 {[%clk 0:02:23]} 13. e4 {[%clk 0:02:34]}  fxe4 {[%clk 0:01:24]} 14. dxe5 {[%clk 0:02:17]}  Nxe5 {[%clk 0:01:16]} 15. Nxe5 {[%clk 0:02:15]}  Bxe5 {[%clk 0:01:15]} 16. Rxe4 {[%clk 0:02:08]}  Bf5 {[%clk 0:01:08]} 17. Re2 {[%clk 0:02:06]}  Bg4 {[%clk 0:00:48]} 18. Re3 {[%clk 0:02:05]}  Qf6 {[%clk 0:00:36]} 19. Bxe5 {[%clk 0:02:03]}  dxe5 {[%clk 0:00:36]} 20. Rae1 {[%clk 0:01:58]}  Rad8 {[%clk 0:00:35]} 21. Qb2 {[%clk 0:01:55]}  e4 {[%clk 0:00:19]} 22. Qxf6 {[%clk 0:01:52]}  Rxf6 {[%clk 0:00:20]} 23. Bxe4 {[%clk 0:01:47]}  Rd2 {[%clk 0:00:19]} 24. Bd5+ {[%clk 0:01:47]}  Rxd5 {[%clk 0:00:15]} 25. cxd5 {[%clk 0:01:46]}  h5 {[%clk 0:00:15]} 26. Kg2 {[%clk 0:01:40]}  h4 {[%clk 0:00:15]} 27. h3 {[%clk 0:01:37]}  Bh5 {[%clk 0:00:15]} 28. g4 {[%clk 0:01:33]}  Bf7 {[%clk 0:00:15]} 29. Re5 {[%clk 0:01:23]}  Rd6 {[%clk 0:00:15]} 30. f4 {[%clk 0:01:11]}  Bxd5+ {[%clk 0:00:14]} 31. Kf2 {[%clk 0:01:11]}  Bf7 {[%clk 0:00:13]} 32. Re7 {[%clk 0:01:05]}  Rd2+ {[%clk 0:00:13]} 33. R1e2 {[%clk 0:01:04]}  Rd3 {[%clk 0:00:13]} 34. Rxc7 {[%clk 0:01:01]}  Rxh3 {[%clk 0:00:12]} 35. Ree7 {[%clk 0:00:58]}  Bd5 {[%clk 0:00:12]} 36. Rxg7+ {[%clk 0:00:57]}  Kf8 {[%clk 0:00:12]} 37. Rgd7 {[%clk 0:00:53]}  Rf3+ {[%clk 0:00:04]} 38. Ke2 {[%clk 0:00:50]}  Ke8 {[%clk 0:00:04]} 39. Rxd5 {[%clk 0:00:48]}  Rxf4 {[%clk 0:00:05]} 40. Rh5 {[%clk 0:00:46]}  Kd8 {[%clk 0:00:05]} 41. Rxb7 {[%clk 0:00:46]}  Kc8 {[%clk 0:00:06]} 42. Rxa7 {[%clk 0:00:46]}  Kb8 {[%clk 0:00:07]} 43. Rg7 {[%clk 0:00:45]}  Rf8 {[%clk 0:00:07]} 44. Rxh4 {[%clk 0:00:44]}  Re8+ {[%clk 0:00:08]} 45. Kd3 {[%clk 0:00:43]}  Rd8+ {[%clk 0:00:09]} 46. Kc4 {[%clk 0:00:44]}  Rf8 {[%clk 0:00:10]} 47. Rhh7 {[%clk 0:00:41]}  Rf4+ {[%clk 0:00:11]} 48. Kb5 {[%clk 0:00:40]}  Rf8 {[%clk 0:00:12]} 49. a4 {[%clk 0:00:38]}  Ka8 {[%clk 0:00:13]} 50. a5 {[%clk 0:00:38]}  Rb8+ {[%clk 0:00:14]} 51. Ka6 {[%clk 0:00:35]}  Rb7 {[%clk 0:00:13]} 52. Rh8+ {[%clk 0:00:34]}  Rb8 {[%clk 0:00:14]} 53. Ra7# {[%clk 0:00:34]} 1-0


[Site "https://www.chess.com"]

[Event "Titled Tuesday Blitz May 4 2021"]
[White "Melkevik, Johannes"]
[Black "Bendayan Claros, Aaron"]
[WhiteFideId "1501836"]
[BlackFideId "3803392"]
[WhiteElo "1727"]
[BlackElo "2166"]
[Result "0-1"]
[Round "07"]
[TimeControl "180+1"]
[Date "2021.05.04"]
[WhiteClock "0:01:12"]
[BlackClock "0:01:27"]

1. d4 {[%clk 0:03:00]}  d5 {[%clk 0:02:59]} 2. Nc3 {[%clk 0:03:00]}  Nf6 {[%clk 0:02:54]} 3. Bf4 {[%clk 0:03:00]}  c6 {[%clk 0:02:50]} 4. e3 {[%clk 0:03:00]}  g6 {[%clk 0:02:45]} 5. Nf3 {[%clk 0:02:51]}  Bg7 {[%clk 0:02:43]} 6. Ne5 {[%clk 0:02:47]}  O-O {[%clk 0:02:42]} 7. h4 {[%clk 0:02:46]}  h5 {[%clk 0:02:38]} 8. Be2 {[%clk 0:02:41]}  Nbd7 {[%clk 0:02:37]} 9. f3 {[%clk 0:02:15]}  Nxe5 {[%clk 0:02:35]} 10. dxe5 {[%clk 0:02:14]}  Nd7 {[%clk 0:02:34]} 11. e6 {[%clk 0:02:05]}  fxe6 {[%clk 0:02:31]} 12. g4 {[%clk 0:02:01]}  e5 {[%clk 0:02:31]} 13. Bg5 {[%clk 0:01:57]}  Qb6 {[%clk 0:02:24]} 14. Qd3 {[%clk 0:01:50]}  e4 {[%clk 0:02:15]} 15. fxe4 {[%clk 0:01:44]}  Ne5 {[%clk 0:02:13]} 16. Qd2 {[%clk 0:01:32]}  Bxg4 {[%clk 0:02:01]} 17. Bxe7 {[%clk 0:01:29]}  Rf7 {[%clk 0:01:33]} 18. Ba3 {[%clk 0:01:15]}  Bxe2 {[%clk 0:01:28]} 19. Nxe2 {[%clk 0:01:12]}  Nf3+ {[%clk 0:01:27]} 0-1


[Site "https://www.chess.com"]